[Event "Late-Titled-Tuesday-Blitz-June-25-2024"]
[Site "Chess.com"]
[Date "2024.06.25"]
[Round "9"]
[White "GoltsevDmitry2000"]
[Black "CM_rui"]
[Result "1-0"]
[WhiteElo "2702"]
[BlackElo "2575"]
[TimeControl "180+1"]
[EndTime "15:45:08 PDT"]
[Termination "GoltsevDmitry2000 won on time"]

1. e4 {[%clk 0:03:00.9]} 1... e5 {[%clk 0:02:57.2]} 2. Nf3 {[%clk 0:03:00.2]}
2... Nc6 {[%clk 0:02:58.1]} 3. Bb5 {[%clk 0:03:00.2]} 3... a6 {[%clk 0:02:58.2]}
4. Ba4 {[%clk 0:03:00.4]} 4... Nf6 {[%clk 0:02:58.6]} 5. O-O {[%clk 0:03:00.8]}
5... Be7 {[%clk 0:02:57.9]} 6. Re1 {[%clk 0:03:00.3]} 6... b5 {[%clk 0:02:58.3]}
7. Bb3 {[%clk 0:03:00.2]} 7... O-O {[%clk 0:02:59.2]} 8. c3 {[%clk 0:03:00.5]}
8... d5 {[%clk 0:02:59.7]} 9. d4 {[%clk 0:03:00.6]} 9... Nxe4 {[%clk 0:02:56.7]}
10. dxe5 {[%clk 0:02:58.7]} 10... Be6 {[%clk 0:02:55.4]} 11. Be3 {[%clk
0:02:52.5]} 11... Re8 {[%clk 0:02:44.1]} 12. Nbd2 {[%clk 0:02:50.9]} 12... Nxd2
{[%clk 0:02:29.8]} 13. Qxd2 {[%clk 0:02:50.7]} 13... Na5 {[%clk 0:02:30.2]} 14.
Bc2 {[%clk 0:02:49.3]} 14... c5 {[%clk 0:02:26.7]} 15. b3 {[%clk 0:02:45.3]}
15... Rc8 {[%clk 0:02:25]} 16. Qd3 {[%clk 0:02:43.6]} 16... g6 {[%clk
0:02:22.5]} 17. Qd2 {[%clk 0:02:43.1]} 17... Nc6 {[%clk 0:02:07.6]} 18. Bh6
{[%clk 0:02:31]} 18... d4 {[%clk 0:02:06.8]} 19. Rad1 {[%clk 0:02:28.9]} 19...
Qc7 {[%clk 0:01:54.9]} 20. Ng5 {[%clk 0:02:09.9]} 20... dxc3 {[%clk 0:01:36.4]}
21. Qxc3 {[%clk 0:01:52.5]} 21... Nd4 {[%clk 0:01:28.3]} 22. Bb1 {[%clk
0:01:42.6]} 22... Bf5 {[%clk 0:01:19.1]} 23. e6 {[%clk 0:01:17.2]} 23... Bxg5
{[%clk 0:01:11.1]} 24. Bxg5 {[%clk 0:01:10.8]} 24... Bxb1 {[%clk 0:01:04]} 25.
Rxb1 {[%clk 0:00:56.2]} 25... Rxe6 {[%clk 0:01:01.6]} 26. Rxe6 {[%clk
0:00:53.5]} 26... Nxe6 {[%clk 0:01:02.5]} 27. Bh6 {[%clk 0:00:49.7]} 27... Nd4
{[%clk 0:00:57.7]} 28. Re1 {[%clk 0:00:48.7]} 28... Nf5 {[%clk 0:00:50.4]} 29.
Bc1 {[%clk 0:00:40.6]} 29... b4 {[%clk 0:00:46.3]} 30. Qd3 {[%clk 0:00:32.4]}
30... Qd6 {[%clk 0:00:40.9]} 31. Qe2 {[%clk 0:00:28.1]} 31... Nd4 {[%clk
0:00:38.9]} 32. Qc4 {[%clk 0:00:24.5]} 32... Rd8 {[%clk 0:00:31.9]} 33. Bb2
{[%clk 0:00:21.5]} 33... a5 {[%clk 0:00:32.1]} 34. h3 {[%clk 0:00:21]} 34... h5
{[%clk 0:00:28.6]} 35. Rc1 {[%clk 0:00:18.2]} 35... Qf4 {[%clk 0:00:19.3]} 36.
Rf1 {[%clk 0:00:07.7]} 36... Qg5 {[%clk 0:00:17]} 37. Kh1 {[%clk 0:00:07.2]}
37... Qd2 {[%clk 0:00:16]} 38. Ba1 {[%clk 0:00:07.5]} 38... Qxa2 {[%clk
0:00:13.2]} 39. Qxc5 {[%clk 0:00:06.7]} 39... Nxb3 {[%clk 0:00:13.7]} 40. Qe7
{[%clk 0:00:05.1]} 40... Qd2 {[%clk 0:00:09.7]} 41. Be5 {[%clk 0:00:04.7]} 41...
Qd3 {[%clk 0:00:05.5]} 42. Qf6 {[%clk 0:00:04]} 42... Qxf1+ {[%clk 0:00:05.3]}
43. Kh2 {[%clk 0:00:04.7]} 1-0

[Event "Late-Titled-Tuesday-Blitz-June-25-2024"]
[Site "Chess.com"]
[Date "2024.06.25"]
[Round "9"]
[White "alexrustemov"]
[Black "smallbaba"]
[Result "1-0"]
[WhiteElo "2829"]
[BlackElo "2628"]
[TimeControl "180+1"]
[EndTime "15:45:09 PDT"]
[Termination "alexrustemov won by resignation"]

1. d4 {[%clk 0:02:57.1]} 1... Nf6 {[%clk 0:02:59.3]} 2. c4 {[%clk 0:02:55.1]}
2... g6 {[%clk 0:02:59.8]} 3. Nf3 {[%clk 0:02:55.3]} 3... Bg7 {[%clk 0:03:00.2]}
4. g3 {[%clk 0:02:55.8]} 4... O-O {[%clk 0:03:00.2]} 5. Bg2 {[%clk 0:02:56.4]}
5... d6 {[%clk 0:03:00.9]} 6. Nc3 {[%clk 0:02:56.7]} 6... c5 {[%clk 0:03:01.2]}
7. dxc5 {[%clk 0:02:55]} 7... dxc5 {[%clk 0:03:02.1]} 8. O-O {[%clk 0:02:55.1]}
8... Nc6 {[%clk 0:03:02.1]} 9. Bf4 {[%clk 0:02:54.7]} 9... Nh5 {[%clk
0:03:00.9]} 10. Be3 {[%clk 0:02:54]} 10... Nd4 {[%clk 0:02:54.2]} 11. Qc1 {[%clk
0:02:52.5]} 11... Bd7 {[%clk 0:02:42]} 12. Bh6 {[%clk 0:02:50.1]} 12... Bc6
{[%clk 0:02:39.8]} 13. Bxg7 {[%clk 0:02:47.9]} 13... Nxg7 {[%clk 0:02:33.6]} 14.
Rd1 {[%clk 0:02:40]} 14... Bxf3 {[%clk 0:02:33.5]} 15. Bxf3 {[%clk 0:02:38]}
15... Nxf3+ {[%clk 0:02:08.5]} 16. exf3 {[%clk 0:02:37.2]} 16... Qc8 {[%clk
0:02:07.7]} 17. Nd5 {[%clk 0:02:30]} 17... Re8 {[%clk 0:02:07.8]} 18. Qh6 {[%clk
0:02:11.1]} 18... Nf5 {[%clk 0:01:54.7]} 19. Qf4 {[%clk 0:02:09.6]} 19... Qc6
{[%clk 0:01:47.9]} 20. Qe5 {[%clk 0:01:59.8]} 20... f6 {[%clk 0:01:38.8]} 21.
Qc7 {[%clk 0:01:52.5]} 21... Nd4 {[%clk 0:01:26.5]} 22. Qxc6 {[%clk 0:01:47.9]}
22... bxc6 {[%clk 0:01:23.7]} 23. Nc7 {[%clk 0:01:47.8]} 23... Nxf3+ {[%clk
0:01:13.4]} 24. Kg2 {[%clk 0:01:46]} 24... Nd4 {[%clk 0:01:14.3]} 25. Rac1
{[%clk 0:01:33.4]} 25... Rab8 {[%clk 0:01:10.5]} 26. Nxe8 {[%clk 0:01:33.1]}
26... Rxe8 {[%clk 0:01:11.4]} 27. Rc3 {[%clk 0:01:33.3]} 27... Rb8 {[%clk
0:01:09.6]} 28. Rd2 {[%clk 0:01:33.5]} 28... Kf7 {[%clk 0:01:08.2]} 29. Ra3
{[%clk 0:01:33.2]} 29... Rb7 {[%clk 0:01:08.4]} 30. Ra5 {[%clk 0:01:33.1]} 30...
Ne6 {[%clk 0:01:03]} 31. b3 {[%clk 0:01:31.8]} 31... g5 {[%clk 0:00:58]} 32. Kf3
{[%clk 0:01:24.9]} 32... Nd4+ {[%clk 0:00:56.5]} 33. Ke3 {[%clk 0:01:23.5]}
33... Ne6 {[%clk 0:00:43.3]} 34. f4 {[%clk 0:01:23.7]} 34... gxf4+ {[%clk
0:00:39.5]} 35. gxf4 {[%clk 0:01:24.6]} 35... f5 {[%clk 0:00:39.5]} 36. Ra6
{[%clk 0:01:10.4]} 36... Rc7 {[%clk 0:00:34.3]} 37. a3 {[%clk 0:01:02.1]} 37...
Rb7 {[%clk 0:00:23.4]} 38. Rb2 {[%clk 0:01:01.7]} 38... Nd4 {[%clk 0:00:19.2]}
39. b4 {[%clk 0:01:01.1]} 39... Ke8 {[%clk 0:00:13.3]} 40. Ra5 {[%clk 0:00:59]}
40... Ne6 {[%clk 0:00:11.5]} 41. b5 {[%clk 0:00:55.8]} 41... Nd4 {[%clk
0:00:09.7]} 42. a4 {[%clk 0:00:50.8]} 42... cxb5 {[%clk 0:00:08.3]} 43. axb5
{[%clk 0:00:49.5]} 43... Kf7 {[%clk 0:00:08.5]} 44. Rba2 {[%clk 0:00:48.9]}
44... Rd7 {[%clk 0:00:06.3]} 45. Rxa7 {[%clk 0:00:47.7]} 45... Rd6 {[%clk
0:00:04.5]} 46. R2a6 {[%clk 0:00:44]} 46... Nc2+ {[%clk 0:00:04.7]} 47. Ke2
{[%clk 0:00:43.1]} 47... Rd4 {[%clk 0:00:05.1]} 48. Rc6 {[%clk 0:00:31.8]} 48...
Rxc4 {[%clk 0:00:04.9]} 49. Kd3 {[%clk 0:00:29.1]} 49... Rd4+ {[%clk 0:00:01.5]}
50. Kxc2 {[%clk 0:00:28.9]} 50... Rxf4 {[%clk 0:00:02.4]} 51. b6 {[%clk
0:00:21.7]} 51... Rf2+ {[%clk 0:00:03.3]} 52. Kc3 {[%clk 0:00:21.7]} 52... f4
{[%clk 0:00:04.2]} 53. b7 {[%clk 0:00:21.1]} 53... Rf1 {[%clk 0:00:04.8]} 54.
b8=Q {[%clk 0:00:20.5]} 1-0

[Event "Late-Titled-Tuesday-Blitz-June-25-2024"]
[Site "Chess.com"]
[Date "2024.06.25"]
[Round "9"]
[White "Fore_Man"]
[Black "Connectedcloud"]
[Result "0-1"]
[WhiteElo "2241"]
[BlackElo "2365"]
[TimeControl "180+1"]
[EndTime "15:45:14 PDT"]
[Termination "Connectedcloud won on time"]

1. Nf3 {[%clk 0:03:00.9]} 1... Nf6 {[%clk 0:02:59.1]} 2. g3 {[%clk 0:03:00.4]}
2... d5 {[%clk 0:02:58.7]} 3. Bg2 {[%clk 0:03:00.6]} 3... c6 {[%clk 0:02:59.4]}
4. O-O {[%clk 0:03:00.8]} 4... Bg4 {[%clk 0:02:59.8]} 5. d3 {[%clk 0:03:01.2]}
5... Nbd7 {[%clk 0:02:59]} 6. Nbd2 {[%clk 0:03:01.6]} 6... e5 {[%clk 0:02:58.7]}
7. e4 {[%clk 0:03:01.8]} 7... dxe4 {[%clk 0:02:57.6]} 8. dxe4 {[%clk 0:03:01.4]}
8... Bc5 {[%clk 0:02:58]} 9. Qe2 {[%clk 0:02:58.6]} 9... O-O {[%clk 0:02:57.6]}
10. b3 {[%clk 0:02:55.6]} 10... a5 {[%clk 0:02:53.3]} 11. Bb2 {[%clk 0:02:55.9]}
11... Re8 {[%clk 0:02:52.6]} 12. Rad1 {[%clk 0:02:53.5]} 12... Qc7 {[%clk
0:02:52.6]} 13. h3 {[%clk 0:02:51.6]} 13... Bh5 {[%clk 0:02:52.2]} 14. Nc4
{[%clk 0:02:42.6]} 14... b5 {[%clk 0:02:50.5]} 15. Ncd2 {[%clk 0:02:41.7]} 15...
a4 {[%clk 0:02:49.9]} 16. g4 {[%clk 0:02:32.8]} 16... Bg6 {[%clk 0:02:49.5]} 17.
Nh4 {[%clk 0:02:30.6]} 17... axb3 {[%clk 0:02:45.2]} 18. axb3 {[%clk 0:02:30.2]}
18... Nf8 {[%clk 0:02:43.9]} 19. Nf5 {[%clk 0:02:25.8]} 19... Ne6 {[%clk
0:02:41.9]} 20. Qf3 {[%clk 0:02:18.6]} 20... Nf4 {[%clk 0:02:35.5]} 21. Bc1
{[%clk 0:01:59.4]} 21... Rad8 {[%clk 0:02:27.7]} 22. Nb1 {[%clk 0:01:53.7]}
22... Nxg2 {[%clk 0:02:27.7]} 23. Kxg2 {[%clk 0:01:52.8]} 23... Bxf5 {[%clk
0:02:27.3]} 24. gxf5 {[%clk 0:01:51.2]} 24... Kh8 {[%clk 0:02:26.7]} 25. Kh1
{[%clk 0:01:39.3]} 25... Rxd1 {[%clk 0:02:18.8]} 26. Rxd1 {[%clk 0:01:38.3]}
26... Rd8 {[%clk 0:02:18.4]} 27. Rg1 {[%clk 0:01:36.2]} 27... Rg8 {[%clk
0:02:14.2]} 28. Bg5 {[%clk 0:01:34.5]} 28... Qd6 {[%clk 0:02:06.9]} 29. Nd2
{[%clk 0:01:28.9]} 29... h6 {[%clk 0:02:05.5]} 30. Be3 {[%clk 0:01:25.6]} 30...
Bxe3 {[%clk 0:02:05.2]} 31. Qxe3 {[%clk 0:01:26.5]} 31... Nh5 {[%clk 0:02:02]}
32. Kh2 {[%clk 0:01:16]} 32... Nf4 {[%clk 0:02:02.1]} 33. Nf1 {[%clk 0:01:07]}
33... Qd1 {[%clk 0:01:54.5]} 34. Qd2 {[%clk 0:00:27.6]} 34... Qf3 {[%clk
0:01:46.1]} 35. Rg3 {[%clk 0:00:24.8]} 35... Qxe4 {[%clk 0:01:45.2]} 36. Ne3
{[%clk 0:00:23.4]} 36... Qd4 {[%clk 0:01:41.8]} 37. Qxd4 {[%clk 0:00:20.6]}
37... exd4 {[%clk 0:01:42.7]} 38. Ng4 {[%clk 0:00:20.5]} 38... f6 {[%clk
0:01:40.9]} 39. Rf3 {[%clk 0:00:18.5]} 39... Nd5 {[%clk 0:01:40.9]} 40. Rd3
{[%clk 0:00:18.3]} 40... c5 {[%clk 0:01:40.4]} 41. Kg3 {[%clk 0:00:16.8]} 41...
Nb4 {[%clk 0:01:40.5]} 42. Rd2 {[%clk 0:00:16.7]} 42... Ra8 {[%clk 0:01:40.2]}
43. Re2 {[%clk 0:00:02]} 43... h5 {[%clk 0:01:34.9]} 44. Nh2 {[%clk 0:00:01.8]}
44... Ra2 {[%clk 0:01:33.1]} 45. Nf3 {[%clk 0:00:02.2]} 45... Rxc2 {[%clk
0:01:31.7]} 46. Re8+ {[%clk 0:00:01.4]} 46... Kh7 {[%clk 0:01:32.2]} 47. Nh4
{[%clk 0:00:01.9]} 47... Rc3+ {[%clk 0:01:26.4]} 48. f3 {[%clk 0:00:02.1]} 48...
Re3 {[%clk 0:01:21.3]} 49. Rf8 {[%clk 0:00:01]} 49... Re1 {[%clk 0:01:05.1]} 50.
Ng6 {[%clk 0:00:01.7]} 50... Rg1+ {[%clk 0:01:04.9]} 51. Kf4 {[%clk 0:00:02.6]}
51... Rxg6 {[%clk 0:01:05.3]} 52. fxg6+ {[%clk 0:00:03.4]} 52... Kxg6 {[%clk
0:01:06.2]} 53. Rc8 {[%clk 0:00:03]} 53... Nd3+ {[%clk 0:00:55.9]} 54. Ke4
{[%clk 0:00:02.7]} 54... Nf2+ {[%clk 0:00:53.6]} 55. Kd5 {[%clk 0:00:02.7]}
55... d3 {[%clk 0:00:52.8]} 56. Kxc5 {[%clk 0:00:01.6]} 56... d2 {[%clk
0:00:52.6]} 57. Rd8 {[%clk 0:00:02.5]} 57... d1=Q {[%clk 0:00:52.8]} 58. Rxd1
{[%clk 0:00:02.6]} 58... Nxd1 {[%clk 0:00:53.7]} 59. Kxb5 {[%clk 0:00:02.7]}
59... Kf5 {[%clk 0:00:53.8]} 60. b4 {[%clk 0:00:02.4]} 60... Ke6 {[%clk
0:00:49.1]} 61. Kc4 {[%clk 0:00:03.3]} 61... Kd6 {[%clk 0:00:47]} 62. Kd4 {[%clk
0:00:04]} 62... Nf2 {[%clk 0:00:45.9]} 63. h4 {[%clk 0:00:04]} 63... g5 {[%clk
0:00:45.3]} 64. hxg5 {[%clk 0:00:03.3]} 64... fxg5 {[%clk 0:00:45.8]} 65. Ke3
{[%clk 0:00:03.9]} 65... Nd1+ {[%clk 0:00:44.7]} 66. Ke4 {[%clk 0:00:03.7]}
66... h4 {[%clk 0:00:43]} 67. Kd3 {[%clk 0:00:01.3]} 67... h3 {[%clk 0:00:41.8]}
0-1

[Event "Late-Titled-Tuesday-Blitz-June-25-2024"]
[Site "Chess.com"]
[Date "2024.06.25"]
[Round "9"]
[White "Cxrjs"]
[Black "maracayo"]
[Result "0-1"]
[WhiteElo "2507"]
[BlackElo "2401"]
[TimeControl "180+1"]
[EndTime "15:45:19 PDT"]
[Termination "maracayo won by checkmate"]

1. e4 {[%clk 0:02:58.5]} 1... d6 {[%clk 0:02:59.4]} 2. d4 {[%clk 0:02:58.6]}
2... Nf6 {[%clk 0:02:59.4]} 3. Nc3 {[%clk 0:02:58.9]} 3... c6 {[%clk 0:02:59.6]}
4. Be3 {[%clk 0:02:57.6]} 4... Qa5 {[%clk 0:02:59.3]} 5. Qd2 {[%clk 0:02:53.9]}
5... e5 {[%clk 0:02:58.6]} 6. Nf3 {[%clk 0:02:50.9]} 6... Be7 {[%clk 0:02:56.2]}
7. h3 {[%clk 0:02:41.5]} 7... O-O {[%clk 0:02:55.1]} 8. Bd3 {[%clk 0:02:38.1]}
8... Re8 {[%clk 0:02:53.9]} 9. O-O {[%clk 0:02:33.7]} 9... Qc7 {[%clk
0:02:53.6]} 10. Rfe1 {[%clk 0:02:21.6]} 10... Nbd7 {[%clk 0:02:52.4]} 11. a4
{[%clk 0:02:17.7]} 11... Bf8 {[%clk 0:02:49.8]} 12. dxe5 {[%clk 0:02:02]} 12...
dxe5 {[%clk 0:02:48.3]} 13. Bc4 {[%clk 0:02:00.9]} 13... h6 {[%clk 0:02:46.3]}
14. Qe2 {[%clk 0:01:53]} 14... Nc5 {[%clk 0:02:34.8]} 15. Bxc5 {[%clk
0:01:27.6]} 15... Bxc5 {[%clk 0:02:33.7]} 16. Nh4 {[%clk 0:01:24.1]} 16... Bd4
{[%clk 0:02:30]} 17. Qf3 {[%clk 0:01:22.8]} 17... Be6 {[%clk 0:02:17.1]} 18. Bd3
{[%clk 0:01:10.6]} 18... Bxc3 {[%clk 0:01:40.6]} 19. bxc3 {[%clk 0:01:10.1]}
19... Qa5 {[%clk 0:01:25]} 20. Bf1 {[%clk 0:01:02.7]} 20... Rad8 {[%clk
0:01:22]} 21. g4 {[%clk 0:01:01]} 21... Nh7 {[%clk 0:01:11.4]} 22. Qe3 {[%clk
0:01:00.5]} 22... Ng5 {[%clk 0:01:04.2]} 23. Nf5 {[%clk 0:01:00.1]} 23... Bxf5
{[%clk 0:01:02.8]} 24. exf5 {[%clk 0:00:59.2]} 24... e4 {[%clk 0:00:53]} 25. Bg2
{[%clk 0:00:56.8]} 25... Qb6 {[%clk 0:00:35]} 26. h4 {[%clk 0:00:54]} 26... Qxe3
{[%clk 0:00:33.5]} 27. Rxe3 {[%clk 0:00:53.7]} 27... Nf3+ {[%clk 0:00:31.2]} 28.
Bxf3 {[%clk 0:00:52.7]} 28... exf3 {[%clk 0:00:32.1]} 29. Rae1 {[%clk
0:00:52.6]} 29... Rxe3 {[%clk 0:00:31]} 30. Rxe3 {[%clk 0:00:53.1]} 30... Rd1+
{[%clk 0:00:29.9]} 31. Kh2 {[%clk 0:00:52.9]} 31... Rd2 {[%clk 0:00:30.8]} 32.
Kg3 {[%clk 0:00:52.4]} 32... Rxc2 {[%clk 0:00:30.8]} 33. Kxf3 {[%clk 0:00:49.8]}
33... Kf8 {[%clk 0:00:30.9]} 34. Rd3 {[%clk 0:00:49.3]} 34... Ke7 {[%clk
0:00:31]} 35. g5 {[%clk 0:00:44.1]} 35... hxg5 {[%clk 0:00:30.1]} 36. hxg5
{[%clk 0:00:44.8]} 36... Ra2 {[%clk 0:00:30.1]} 37. Rd4 {[%clk 0:00:43.5]} 37...
Ra3 {[%clk 0:00:28.9]} 38. Rc4 {[%clk 0:00:41.5]} 38... Kd6 {[%clk 0:00:27.9]}
39. Ke4 {[%clk 0:00:40.4]} 39... c5 {[%clk 0:00:27.8]} 40. Kd3 {[%clk
0:00:39.4]} 40... a6 {[%clk 0:00:25.2]} 41. Rh4 {[%clk 0:00:39]} 41... b5 {[%clk
0:00:24.7]} 42. axb5 {[%clk 0:00:34.2]} 42... axb5 {[%clk 0:00:25.6]} 43. Rh7
{[%clk 0:00:34.7]} 43... b4 {[%clk 0:00:25.9]} 44. Rxg7 {[%clk 0:00:35.1]} 44...
Rxc3+ {[%clk 0:00:26.1]} 45. Kd2 {[%clk 0:00:35.6]} 45... Rf3 {[%clk 0:00:22.5]}
46. Rxf7 {[%clk 0:00:35.9]} 46... Rxf2+ {[%clk 0:00:22.8]} 47. Kd3 {[%clk
0:00:36.2]} 47... Rg2 {[%clk 0:00:23.7]} 48. g6 {[%clk 0:00:30]} 48... Kd5
{[%clk 0:00:24.6]} 49. g7 {[%clk 0:00:24]} 49... c4+ {[%clk 0:00:23]} 50. Ke3
{[%clk 0:00:23.2]} 50... b3 {[%clk 0:00:22.4]} 51. f6 {[%clk 0:00:22.1]} 51...
b2 {[%clk 0:00:22.3]} 52. Rb7 {[%clk 0:00:22.1]} 52... c3 {[%clk 0:00:22.3]} 53.
f7 {[%clk 0:00:18.3]} 53... c2 {[%clk 0:00:21.4]} 54. g8=Q {[%clk 0:00:06.1]}
54... c1=Q+ {[%clk 0:00:22.3]} 55. Kd3 {[%clk 0:00:04.5]} 55... Rd2+ {[%clk
0:00:20.7]} 56. Ke3 {[%clk 0:00:04.8]} 56... Qc3+ {[%clk 0:00:20.8]} 57. Kf4
{[%clk 0:00:05]} 57... Qe5+ {[%clk 0:00:20.9]} 58. Kg4 {[%clk 0:00:04.1]} 58...
Rg2+ {[%clk 0:00:20.6]} 59. Kh3 {[%clk 0:00:03.3]} 59... Qh2# {[%clk 0:00:20.5]}
0-1

[Event "Late-Titled-Tuesday-Blitz-June-25-2024"]
[Site "Chess.com"]
[Date "2024.06.25"]
[Round "9"]
[White "chesspingvin1995"]
[Black "Zq1"]
[Result "1/2-1/2"]
[WhiteElo "2278"]
[BlackElo "2492"]
[TimeControl "180+1"]
[EndTime "15:45:26 PDT"]
[Termination "Game drawn - timeout vs insufficient material"]

1. Nf3 {[%clk 0:03:00.9]} 1... Nf6 {[%clk 0:02:59.9]} 2. g3 {[%clk 0:03:00.4]}
2... g6 {[%clk 0:03:00.3]} 3. Bg2 {[%clk 0:02:57.9]} 3... Bg7 {[%clk 0:03:00.9]}
4. d4 {[%clk 0:02:58.1]} 4... O-O {[%clk 0:03:00.8]} 5. O-O {[%clk 0:02:57.8]}
5... d6 {[%clk 0:02:56.9]} 6. a4 {[%clk 0:02:56.8]} 6... a5 {[%clk 0:02:49.6]}
7. Nc3 {[%clk 0:02:55.2]} 7... Nbd7 {[%clk 0:02:44.5]} 8. e4 {[%clk 0:02:52.1]}
8... c6 {[%clk 0:02:41.5]} 9. Be3 {[%clk 0:02:44.1]} 9... Ng4 {[%clk 0:02:32.8]}
10. Bg5 {[%clk 0:02:25.7]} 10... h6 {[%clk 0:02:32]} 11. Bf4 {[%clk 0:02:02.2]}
11... e5 {[%clk 0:02:31.4]} 12. dxe5 {[%clk 0:02:00.8]} 12... dxe5 {[%clk
0:02:30.9]} 13. Bd2 {[%clk 0:02:00.4]} 13... Qe7 {[%clk 0:02:30.1]} 14. h3
{[%clk 0:02:00.3]} 14... Ngf6 {[%clk 0:02:29.6]} 15. Be3 {[%clk 0:01:58.1]}
15... Nc5 {[%clk 0:02:26.6]} 16. Bxc5 {[%clk 0:01:26.4]} 16... Qxc5 {[%clk
0:02:25.8]} 17. Qe2 {[%clk 0:01:25.4]} 17... Be6 {[%clk 0:02:22.3]} 18. Rfd1
{[%clk 0:01:25.1]} 18... Rfd8 {[%clk 0:02:09.8]} 19. Rxd8+ {[%clk 0:01:23.7]}
19... Rxd8 {[%clk 0:02:08.5]} 20. Rd1 {[%clk 0:01:24.6]} 20... Rxd1+ {[%clk
0:02:03.5]} 21. Qxd1 {[%clk 0:01:25.5]} 21... Nd7 {[%clk 0:01:56.6]} 22. Qd3
{[%clk 0:01:06.6]} 22... Qc4 {[%clk 0:01:45]} 23. Qxc4 {[%clk 0:00:57.8]} 23...
Bxc4 {[%clk 0:01:44.2]} 24. Bf1 {[%clk 0:00:55.9]} 24... Be6 {[%clk 0:01:43.8]}
25. Nd2 {[%clk 0:00:52.2]} 25... Nb6 {[%clk 0:01:35.9]} 26. b3 {[%clk
0:00:50.5]} 26... Bf8 {[%clk 0:01:34.8]} 27. Nf3 {[%clk 0:00:44.3]} 27... Bc5
{[%clk 0:01:30.8]} 28. Kg2 {[%clk 0:00:40]} 28... f6 {[%clk 0:01:29]} 29. Nd1
{[%clk 0:00:32.6]} 29... g5 {[%clk 0:01:26.7]} 30. g4 {[%clk 0:00:32.2]} 30...
Kf7 {[%clk 0:01:24.4]} 31. Nb2 {[%clk 0:00:31.9]} 31... Ke7 {[%clk 0:01:20.1]}
32. Nd3 {[%clk 0:00:31.3]} 32... Ba3 {[%clk 0:01:19.8]} 33. Nd2 {[%clk
0:00:27.3]} 33... Bd6 {[%clk 0:00:57.6]} 34. Kf3 {[%clk 0:00:26.7]} 34... Nd7
{[%clk 0:00:54.8]} 35. Ke2 {[%clk 0:00:24.4]} 35... b5 {[%clk 0:00:50.3]} 36.
Kd1 {[%clk 0:00:16.3]} 36... Nb6 {[%clk 0:00:42.7]} 37. axb5 {[%clk 0:00:14.8]}
37... cxb5 {[%clk 0:00:42.5]} 38. Nb2 {[%clk 0:00:15.5]} 38... Ba3 {[%clk
0:00:37.3]} 39. Kc1 {[%clk 0:00:15.5]} 39... Kd6 {[%clk 0:00:30.7]} 40. Bxb5
{[%clk 0:00:11.9]} 40... Kc5 {[%clk 0:00:30.8]} 41. Bd3 {[%clk 0:00:11.2]} 41...
Kd4 {[%clk 0:00:27.9]} 42. Nb1 {[%clk 0:00:11.9]} 42... Bb4 {[%clk 0:00:20.1]}
43. Nd1 {[%clk 0:00:11.8]} 43... Bxb3 {[%clk 0:00:18.6]} 44. Bf1 {[%clk
0:00:07.8]} 44... Be6 {[%clk 0:00:06.7]} 45. c3+ {[%clk 0:00:07.7]} 45... Kxe4
{[%clk 0:00:06.3]} 46. cxb4 {[%clk 0:00:07.8]} 46... axb4 {[%clk 0:00:06.5]} 47.
Nd2+ {[%clk 0:00:05.8]} 47... Kf4 {[%clk 0:00:06.4]} 48. Ne3 {[%clk 0:00:06.2]}
48... e4 {[%clk 0:00:03.5]} 49. Ndc4 {[%clk 0:00:04.9]} 49... Nxc4 {[%clk
0:00:02.6]} 50. Bxc4 {[%clk 0:00:04.7]} 50... Bxc4 {[%clk 0:00:02.2]} 51. Nxc4
{[%clk 0:00:05.5]} 51... Kf3 {[%clk 0:00:01.5]} 52. Nd6 {[%clk 0:00:06.3]} 52...
Kxf2 {[%clk 0:00:01]} 53. Nxe4+ {[%clk 0:00:06.3]} 53... Kg2 {[%clk 0:00:01.1]}
54. Nxf6 {[%clk 0:00:07]} 54... Kxh3 {[%clk 0:00:01.2]} 55. Ng8 {[%clk
0:00:07.2]} 55... Kxg4 {[%clk 0:00:01]} 56. Nxh6+ {[%clk 0:00:07.9]} 56... Kf4
{[%clk 0:00:01.2]} 57. Kb2 {[%clk 0:00:07.7]} 1/2-1/2